[Event "GER-ch Youth U16W 2020"]
[Site "Willingen"]
[Date "2020.10.23"]
[Round "6.3"]
[White "Pavlov, Liliane"]
[Black "Bardorz, Jana"]
[Result "0-1"]
[ECO "A49"]
[WhiteElo "1744"]
[BlackElo "1960"]
[Annotator "ChessBase"]
[PlyCount "100"]
[EventDate "2020.10.20"]
[EventType "swiss"]
[EventRounds "7"]
[EventCountry "GER"]
[SourceTitle "playchess.com"]
[Source "ChessBase"]
[SourceQuality "1"]
[TimeControl "40/5400+30:1800+30"]

1. d4 {[%emt 0:00:00]} Nf6 {[%emt 0:00:00]} 2. Nf3 {[%emt 0:00:00]} g6 {[%emt 0:00:00]} 3. g3 {[%emt 0:00:00]} Bg7 {[%emt 0:00:00]} 4. Bg2 {[%emt 0:00:00]} O-O {[%emt 0:00:00]} 5. O-O {[%emt 0:00:00]} d6 {[%emt 0:03:20]} 6. b3 {[%emt 0:00:10]} c6 {[%emt 0:02:41]} 7. Bb2 {[%emt 0:00:25]} Nbd7 {[%emt 0:04:18]} 8. c4 {[%emt 0:03:02]} Qb6 {[%emt 0:03:34]} 9. Qc2 {[%emt 0:02:32]} Re8 {[%emt 0:02:47]} 10. Nbd2 {[%emt 0:03:46]} e5 {[%emt 0:02:18]} 11. e4 {[%emt 0:01:07]} Nh5 {[%emt 0:06:44]} 12. d5 {[%emt 0:03:10]} Nc5 {[%emt 0:03:47]} 13. Ne1 {[%emt 0:05:59]} f5 {[%emt 0:04:01]} 14. dxc6 {[%emt 0:03:02]} bxc6 {[%emt 0:00:33]} 15. Nd3 {[%emt 0:01:58]} Nxe4 {[%emt 0:06:39]} 16. Nxe4 {[%emt 0:01:09]} fxe4 {[%emt 0:00:04]} 17. Bxe4 {[%emt 0:00:15]} Nf6 {[%emt 0:01:05]} 18. Bg2 {[%emt 0:00:31]} Bf5 {[%emt 0:01:19]} 19. Qd1 {[%emt 0:06:24]} Rad8 {[%emt 0:04:03]} 20. Kh1 {[%emt 0:04:38]} e4 {[%emt 0:05:47]} 21. Nf4 {[%emt 0:04:13]} Ng4 {[%emt 0:01:30]} 22. Bxg7 {[%emt 0:02:49]} Kxg7 {[%emt 0:00:20]} 23. Qe2 {[%emt 0:06:35]} e3 {[%emt 0:03:57]} 24. f3 {[%emt 0:02:56]} Nf2+ {[%emt 0:04:46]} 25. Kg1 {[%emt 0:00:09]} d5 {[%emt 0:05:52]} 26. g4 {[%emt 0:01:58]} Bd3 {[%emt 0:04:17]} 27. Nxd3 {[%emt 0:01:01]} Nxd3 {[%emt 0:00:06]} 28. Qxd3 {[%emt 0:02:18]} e2+ {[%emt 0:00:24]} 29. Kh1 {[%emt 0:00:38]} exf1=Q+ {[%emt 0:03:29]} 30. Rxf1 {[%emt 0:00:30]} Qe3 {[%emt 0:02:05]} 31. Qxe3 {[%emt 0:04:05]} Rxe3 {[%emt 0:00:24]} 32. f4 {[%emt 0:03:08]} d4 {[%emt 0:06:48]} 33. Bf3 {[%emt 0:10:24]} c5 {[%emt 0:04:49]} 34. Kg2 {[%emt 0:02:33]} Rde8 {[%emt 0:01:34]} 35. Kf2 {[%emt 0:00:44]} Rc3 {[%emt 0:01:31]} 36. Bd1 {[%emt 0:00:45]} Rd3 {[%emt 0:01:30]} 37. a4 {[%emt 0:01:15]} Rde3 {[%emt 0:02:13]} 38. Kg2 {[%emt 0:01:41]} Re1 {[%emt 0:01:04]} 39. Kf2 {[%emt 0:00:36]} Rxf1+ {[%emt 0:00:10]} 40. Kxf1 {[%emt 0:00:05]} Rf8 {[%emt 0:00:38]} 41. Ke2 {[%emt 0:31:02]} Rxf4 {[%emt 0:30:10]} 42. Kd3 {[%emt 0:00:08]} g5 {[%emt 0:02:53]} 43. h3 {[%emt 0:00:58]} a5 {[%emt 0:00:22]} 44. Be2 {[%emt 0:00:22]} Kf6 {[%emt 0:00:33]} 45. Bd1 {[%emt 0:00:20]} Ke5 {[%emt 0:00:25]} 46. Ke2 {[%emt 0:02:41]} h6 {[%emt 0:01:26]} 47. Bc2 {[%emt 0:00:20]} Rf6 {[%emt 0:00:48]} 48. Bd3 {[%emt 0:00:40]} Kf4 {[%emt 0:00:20]} 49. Kf2 {[%emt 0:00:55]} Re6 {[%emt 0:00:10]} 50. Bf5 {[%emt 0:07:05]} Re3 {[%emt 0:00:15]} 0-1

[Event "GER-ch Youth U16W 2020"]
[Site "Willingen"]
[Date "2020.10.23"]
[Round "6.4"]
[White "Schnabel, Luise"]
[Black "Peglau, Mirjam"]
[Result "0-1"]
[ECO "C03"]
[WhiteElo "1867"]
[BlackElo "1909"]
[Annotator "ChessBase"]
[PlyCount "116"]
[EventDate "2020.10.20"]
[EventType "swiss"]
[EventRounds "7"]
[EventCountry "GER"]
[SourceTitle "playchess.com"]
[Source "ChessBase"]
[SourceQuality "1"]
[TimeControl "40/5400+30:1800+30"]

1. e4 {[%emt 0:00:00]} e6 {[%emt 0:00:00]} 2. d4 {[%emt 0:00:00]} d5 {[%emt 0:00:00]} 3. Nd2 {[%emt 0:00:21]} dxe4 {[%emt 0:00:00]} 4. Nxe4 {[%emt 0:00:21]} Bd7 {[%emt 0:00:00]} 5. Be3 {[%emt 0:10:19]} Bc6 {[%emt 0:00:39]} 6. Ng3 {[%emt 0:16:44]} Nf6 {[%emt 0:01:11]} 7. Nf3 {[%emt 0:04:24]} Nbd7 {[%emt 0:00:53]} 8. Be2 {[%emt 0:03:40]} Be7 {[%emt 0:01:33]} 9. O-O {[%emt 0:03:01]} O-O {[%emt 0:01:05]} 10. Re1 {[%emt 0:04:52]} Bxf3 {[%emt 0:03:18]} 11. Bxf3 {[%emt 0:00:50]} c6 {[%emt 0:00:05]} 12. c3 {[%emt 0:05:32]} Re8 {[%emt 0:05:45]} 13. Bf4 {[%emt 0:04:23]} Nd5 {[%emt 0:02:58]} 14. Bxd5 {[%emt 0:00:52]} cxd5 {[%emt 0:02:22]} 15. Ne2 {[%emt 0:02:47]} b5 {[%emt 0:03:36]} 16. a3 {[%emt 0:13:43]} a5 {[%emt 0:01:06]} 17. Nc1 {[%emt 0:02:37]} b4 {[%emt 0:04:29]} 18. axb4 {[%emt 0:00:51]} axb4 {[%emt 0:00:09]} 19. Nd3 {[%emt 0:00:55]} bxc3 {[%emt 0:02:26]} 20. bxc3 {[%emt 0:01:25]} Qb6 {[%emt 0:02:01]} 21. Rb1 {[%emt 0:03:49]} Qc6 {[%emt 0:05:06]} 22. Rb3 {[%emt 0:03:03]} Bd6 {[%emt 0:01:56]} 23. Ne5 {[%emt 0:07:23]} Nxe5 {[%emt 0:03:13]} 24. Bxe5 {[%emt 0:00:13]} Bxe5 {[%emt 0:00:17]} 25. dxe5 {[%emt 0:01:09]} Reb8 {[%emt 0:04:11]} 26. Rxb8+ {[%emt 0:01:22]} Rxb8 {[%emt 0:00:01]} 27. Qd4 {[%emt 0:00:44]} Rb3 {[%emt 0:11:45]} 28. Rc1 {[%emt 0:02:46]} h6 {[%emt 0:02:09]} 29. h3 {[%emt 0:00:32]} Rb8 {[%emt 0:03:48]} 30. Ra1 {[%emt 0:01:42]} Rc8 {[%emt 0:00:52]} 31. Ra3 {[%emt 0:00:54]} Qc4 {[%emt 0:01:27]} 32. Qxc4 {[%emt 0:01:15]} Rxc4 {[%emt 0:00:02]} 33. f3 {[%emt 0:00:14]} g5 {[%emt 0:00:50]} 34. Kf2 {[%emt 0:01:46]} Kg7 {[%emt 0:01:30]} 35. Ke3 {[%emt 0:01:07]} h5 {[%emt 0:02:11]} 36. g3 {[%emt 0:01:37]} Kg6 {[%emt 0:03:30]} 37. g4 {[%emt 0:00:26]} h4 {[%emt 0:00:42]} 38. Kd3 {[%emt 0:00:38]} Rf4 {[%emt 0:00:48]} 39. Ke3 {[%emt 0:00:15]} Kg7 {[%emt 0:00:34]} 40. Ke2 {[%emt 0:00:45]} Rc4 {[%emt 0:01:44]} 41. Kd3 {[%emt 0:02:07]} Kg6 {[%emt 0:03:09]} 42. Kd2 {[%emt 0:03:09]} Rc6 {[%emt 0:02:40]} 43. Kd3 {[%emt 0:07:13]} f6 {[%emt 0:02:00]} 44. exf6 {[%emt 0:00:51]} Kxf6 {[%emt 0:00:02]} 45. Ra8 {[%emt 0:03:31]} Ke5 {[%emt 0:04:25]} 46. Ra4 {[%emt 0:02:02]} Rc7 {[%emt 0:02:11]} 47. Kd2 {[%emt 0:02:32]} Rb7 {[%emt 0:01:33]} 48. Kc2 {[%emt 0:00:34]} Rf7 {[%emt 0:00:20]} 49. Ra8 {[%emt 0:01:14]} Rxf3 {[%emt 0:02:20]} 50. Rg8 {[%emt 0:00:28]} Kf4 {[%emt 0:01:10]} 51. Rg6 {[%emt 0:01:22]} Re3 {[%emt 0:02:34]} 52. Kd2 {[%emt 0:01:13]} Re5 {[%emt 0:01:08]} 53. Kd3 {[%emt 0:00:31]} Kg3 {[%emt 0:01:05]} 54. Kd4 {[%emt 0:00:38]} Re4+ {[%emt 0:00:09]} 55. Kd3 {[%emt 0:01:18]} Kxh3 {[%emt 0:00:47]} 56. Rxg5 {[%emt 0:00:25]} Rxg4 {[%emt 0:00:10]} 57. Re5 {[%emt 0:00:36]} Rg6 {[%emt 0:00:32]} 58. Re2 {[%emt 0:01:00]} Kg3 {[%emt 0:00:55]} 0-1

[Event "GER-ch Youth U16W 2020"]
[Site "Willingen"]
[Date "2020.10.23"]
[Round "6.5"]
[White "Doll, Rebecca"]
[Black "Heutling, Elina"]
[Result "0-1"]
[ECO "C50"]
[WhiteElo "1808"]
[BlackElo "1873"]
[Annotator "NA RC"]
[PlyCount "52"]
[EventDate "2020.10.20"]
[EventType "swiss"]
[EventRounds "7"]
[EventCountry "GER"]
[SourceTitle "playchess.com"]
[Source "ChessBase"]
[SourceQuality "1"]
[TimeControl "40/5400+30:1800+30"]

1. e4 {[%emt 0:00:00]} e5 {[%emt 0:00:00]} 2. Nf3 {[%emt 0:00:00]} Nc6 {[%emt 0:00:00]} 3. Bc4 {[%emt 0:00:00]} Bc5 {[%emt 0:00:00]} 4. O-O {[%emt 0:00:00]} Nf6 {[%emt 0:00:00]} 5. d3 {[%emt 0:00:00]} d6 {[%emt 0:00:33]} 6. c3 {[%emt 0:00:15]} a6 {[%emt 0:00:45]} 7. Bb3 {[%emt 0:00:06]} Ba7 {[%emt 0:00:24]} 8. Nbd2 {[%emt 0:00:23]} O-O {[%emt 0:00:31]} 9. h3 {[%emt 0:00:30]} h6 {[%emt 0:00:30]} 10. Re1 {[%emt 0:00:30]} Nh5 {[%emt 0:00:30]} 11. Nxe5 {[%emt 0:12:22]} Qh4 {[%emt 0:03:35]} 12. Ng6 {[%emt 0:15:19]} Qxf2+ {[%emt 0:07:44]} 13. Kh1 {[%emt 0:05:24]} Bxh3 {[%emt 0:03:10]} 14. Rg1 {[%emt 0:00:30]} Ng3+ {[%emt 0:17:05]} 15. Kh2 Ne2 {[%emt 0:02:42]} 16. d4 {[%emt 0:04:06]} Qg3+ {[%emt 0:15:23]} 17. Kh1 {[%emt 0:00:08]} Nxg1 {[%emt 0:01:48]} 18. Qxg1 {[%emt 0:00:51]} Qxg6 {[%emt 0:01:25]} 19. gxh3 {[%emt 0:00:17]} Qxg1+ {[%emt 0:02:03]} 20. Kxg1 {[%emt 0:00:07]} Rae8 {[%emt 0:02:16]} 21. Bc2 {[%emt 0:00:24]} f5 {[%emt 0:06:13]} 22. exf5 {[%emt 0:03:34]} Ne7 {[%emt 0:02:46]} 23. Nf3 {[%emt 0:01:32]} Nxf5 {[%emt 0:00:20]} 24. Bd2 {[%emt 0:00:33]} c5 {[%emt 0:02:48]} 25. dxc5 {[%emt 0:01:08]} Bxc5+ {[%emt 0:01:21]} 26. Kf1 {[%emt 0:01:08]} Ne3+ {[%emt 0:00:20]} 0-1

[Event "GER-ch Youth U16W 2020"]
[Site "Willingen"]
[Date "2020.10.23"]
[Round "6.6"]
[White "Yue, Qizhou"]
[Black "Basovskiy, Jana"]
[Result "1/2-1/2"]
[ECO "B40"]
[WhiteElo "1775"]
[BlackElo "1760"]
[Annotator "NA"]
[PlyCount "69"]
[EventDate "2020.10.20"]
[EventType "swiss"]
[EventRounds "7"]
[EventCountry "GER"]
[SourceTitle "playchess.com"]
[Source "ChessBase"]
[SourceQuality "1"]
[TimeControl "40/5400+30:1800+30"]

1. e4 {[%emt 0:00:00]} c5 {[%emt 0:00:00]} 2. Nf3 {[%emt 0:00:00]} e6 {[%emt 0:00:00]} 3. g3 {[%emt 0:00:00]} Nc6 {[%emt 0:00:11]} 4. Bg2 {[%emt 0:00:02]} Nf6 {[%emt 0:01:44]} 5. Nc3 {[%emt 0:00:09]} d5 {[%emt 0:01:55]} 6. exd5 {[%emt 0:00:15]} exd5 {[%emt 0:00:09]} 7. d4 {[%emt 0:00:10]} Be6 {[%emt 0:06:40]} 8. O-O {[%emt 0:01:32]} h6 {[%emt 0:04:54]} 9. Bf4 {[%emt 0:15:20]} Be7 {[%emt 0:07:05]} 10. Re1 {[%emt 0:05:43]} Rc8 {[%emt 0:03:42]} 11. Ne2 {[%emt 0:04:21]} b6 {[%emt 0:07:40]} 12. c3 {[%emt 0:04:24]} O-O {[%emt 0:02:10]} 13. Nc1 {[%emt 0:09:29]} Bf5 {[%emt 0:19:50]} 14. dxc5 {[%emt 0:10:57]} bxc5 {[%emt 0:03:40]} 15. Nb3 {[%emt 0:03:22]} Re8 {[%emt 0:06:00]} 16. Ne5 {[%emt 0:07:02]} Bf8 {[%emt 0:09:22]} 17. Nxc6 {[%emt 0:02:58]} Rxe1+ {[%emt 0:01:19]} 18. Qxe1 {[%emt 0:00:09]} Rxc6 {[%emt 0:00:04]} 19. Rd1 {[%emt 0:06:09]} Re6 {[%emt 0:01:31]} 20. Qd2 {[%emt 0:01:23]} Be4 {[%emt 0:00:32]} 21. Bxe4 {[%emt 0:01:15]} Rxe4 {[%emt 0:00:05]} 22. Be3 {[%emt 0:01:24]} Qc7 {[%emt 0:01:11]} 23. f3 {[%emt 0:02:14]} Re6 {[%emt 0:01:01]} 24. Qf2 {[%emt 0:00:21]} Rc6 {[%emt 0:02:17]} 25. Bf4 {[%emt 0:03:32]} Qc8 {[%emt 0:01:52]} 26. Be5 {[%emt 0:01:41]} Qf5 {[%emt 0:05:09]} 27. Bxf6 {[%emt 0:02:05]} Rxf6 {[%emt 0:01:34]} 28. f4 {[%emt 0:02:04]} Rc6 {[%emt 0:01:39]} 29. Qf3 {[%emt 0:00:52]} Re6 {[%emt 0:01:23]} 30. Qxd5 {[%emt 0:03:58]} Qc2 {[%emt 0:05:05]} 31. Qd2 {[%emt 0:01:30]} Qe4 {[%emt 0:00:21]} 32. Kf2 {[%emt 0:02:14]} Qa4 {[%emt 0:00:56]} 33. Qc2 {[%emt 0:03:40]} Qe8 {[%emt 0:00:50]} 34. Qd2 {[%emt 0:00:41]} Qa4 {[%emt 0:00:47]} 35. Qc2 {[%emt 0:00:13]} 1/2-1/2

[Event "GER-ch Youth U16W 2020"]
[Site "Willingen"]
[Date "2020.10.23"]
[Round "6.7"]
[White "Falke, Ornella"]
[Black "Kalina, Lena"]
[Result "1-0"]
[ECO "E81"]
[WhiteElo "1500"]
[BlackElo "1561"]
[Annotator "NA RC"]
[PlyCount "169"]
[EventDate "2020.10.20"]
[EventType "swiss"]
[EventRounds "7"]
[EventCountry "GER"]
[SourceTitle "playchess.com"]
[Source "ChessBase"]
[SourceQuality "1"]
[TimeControl "40/5400+30:1800+30"]

1. d4 {[%emt 0:00:00]} Nf6 {[%emt 0:00:00]} 2. c4 {[%emt 0:00:00]} g6 {[%emt 0:00:00]} 3. Nc3 {[%emt 0:00:00]} Bg7 {[%emt 0:00:06]} 4. e4 {[%emt 0:00:29]} d6 {[%emt 0:00:15]} 5. f3 {[%emt 0:00:07]} O-O {[%emt 0:00:54]} 6. Be3 {[%emt 0:00:17]} c5 {[%emt 0:01:19]} 7. Nge2 {[%emt 0:01:03]} Nc6 {[%emt 0:06:19]} 8. d5 {[%emt 0:01:12]} Ne5 {[%emt 0:02:19]} 9. Ng3 {[%emt 0:00:14]} Rb8 {[%emt 0:07:54]} 10. Be2 {[%emt 0:02:14]} a6 {[%emt 0:03:54]} 11. Qd2 {[%emt 0:03:34]} Bd7 {[%emt 0:01:45]} 12. a4 {[%emt 0:01:42]} Qa5 {[%emt 0:03:49]} 13. O-O {[%emt 0:01:35]} Qb4 {[%emt 0:05:51]} 14. b3 {[%emt 0:06:54]} Ne8 {[%emt 0:04:59]} 15. Na2 {[%emt 0:20:00]} Qxd2 {[%emt 0:00:55]} 16. Bxd2 {[%emt 0:00:18]} b5 {[%emt 0:01:34]} 17. axb5 {[%emt 0:00:52]} axb5 {[%emt 0:00:41]} 18. Nc3 {[%emt 0:03:09]} bxc4 {[%emt 0:02:26]} 19. bxc4 {[%emt 0:00:16]} Nc7 {[%emt 0:06:16]} 20. Ra7 {[%emt 0:00:40]} Rfc8 {[%emt 0:09:20]} 21. f4 {[%emt 0:06:08]} Ng4 {[%emt 0:00:42]} 22. Nb5 {[%emt 0:02:58]} Nxb5 {[%emt 0:06:04]} 23. Rxd7 {[%emt 0:17:32]} Nf6 {[%emt 0:02:13]} 24. Rxe7 {[%emt 0:00:20]} Nd4 {[%emt 0:12:01]} 25. e5 {[%emt 0:01:12]} Nxe2+ {[%emt 0:04:56]} 26. Nxe2 {[%emt 0:00:07]} Ne4 {[%emt 0:01:56]} 27. Ba5 {[%emt 0:01:38]} Kf8 {[%emt 0:03:45]} 28. Rc7 {[%emt 0:07:43]} dxe5 {[%emt 0:01:43]} 29. fxe5 {[%emt 0:00:44]} Rxc7 {[%emt 0:01:09]} 30. Bxc7 {[%emt 0:00:06]} Rc8 {[%emt 0:00:39]} 31. Nf4 {[%emt 0:03:20]} Ke8 {[%emt 0:01:27]} 32. Re1 {[%emt 0:01:38]} Nd2 {[%emt 0:02:05]} 33. d6 {[%emt 0:01:56]} Kd7 {[%emt 0:01:40]} 34. Nd5 {[%emt 0:01:44]} Rf8 {[%emt 0:02:37]} 35. Nb6+ {[%emt 0:01:55]} Kc6 {[%emt 0:00:28]} 36. Kf2 {[%emt 0:03:02]} Nb3 {[%emt 0:01:00]} 37. Kg3 {[%emt 0:03:33]} Nd4 {[%emt 0:00:31]} 38. Nd5 {[%emt 0:01:22]} Re8 {[%emt 0:01:10]} 39. Ne7+ {[%emt 0:01:16]} Kd7 {[%emt 0:00:08]} 40. Bb6 {[%emt 0:01:38]} Ne6 {[%emt 0:02:08]} 41. Kf2 {[%emt 0:07:30]} Ra8 {[%emt 0:03:44]} 42. Nd5 {[%emt 0:03:01]} Ra2+ {[%emt 0:03:15]} 43. Kf1 {[%emt 0:12:05]} Rc2 {[%emt 0:04:55]} 44. Bc7 {[%emt 0:00:04]} Nd4 {[%emt 0:02:00]} 45. Bb8 {[%emt 0:08:40]} Rb2 {[%emt 0:03:11]} 46. Ba7 {[%emt 0:00:25]} Ne6 {[%emt 0:01:16]} 47. Re3 {[%emt 0:00:25]} Rb7 {[%emt 0:02:41]} 48. Rf3 {[%emt 0:02:56]} Ke8 {[%emt 0:02:08]} 49. Bb6 {[%emt 0:01:36]} Bxe5 {[%emt 0:02:05]} 50. Nc7+ {[%emt 0:01:37]} Nxc7 {[%emt 0:00:49]} 51. dxc7 {[%emt 0:00:11]} Bxc7 {[%emt 0:00:36]} 52. Bxc5 {[%emt 0:00:02]} Rb1+ {[%emt 0:03:09]} 53. Ke2 {[%emt 0:00:18]} Kd7 {[%emt 0:01:00]} 54. Rxf7+ {[%emt 0:00:11]} Kc6 {[%emt 0:00:25]} 55. Rxh7 {[%emt 0:00:18]} Bf4 {[%emt 0:01:30]} 56. Bd4 {[%emt 0:00:18]} Rc1 {[%emt 0:00:33]} 57. c5 {[%emt 0:00:11]} Rc2+ {[%emt 0:00:30]} 58. Kf3 {[%emt 0:00:07]} Bc1 {[%emt 0:00:22]} 59. Rg7 {[%emt 0:00:48]} g5 {[%emt 0:00:57]} 60. h3 {[%emt 0:01:27]} Rc4 {[%emt 0:00:33]} 61. Bf6 {[%emt 0:00:53]} Rxc5 {[%emt 0:00:23]} 62. Kg4 {[%emt 0:00:28]} Rc2 {[%emt 0:00:57]} 63. g3 {[%emt 0:00:17]} Rc4+ {[%emt 0:00:14]} 64. Kh5 {[%emt 0:00:33]} Kd5 {[%emt 0:01:54]} 65. Bxg5 {[%emt 0:00:13]} Bb2 {[%emt 0:00:19]} 66. Rg8 {[%emt 0:00:22]} Ke6 {[%emt 0:00:36]} 67. Rf8 {[%emt 0:00:24]} Bg7 {[%emt 0:00:39]} 68. Rf4 {[%emt 0:00:23]} Rc3 {[%emt 0:00:28]} 69. Rg4 {[%emt 0:01:10]} Be5 {[%emt 0:01:07]} 70. Bf4 {[%emt 0:00:06]} Bf6 {[%emt 0:00:46]} 71. h4 {[%emt 0:01:30]} Rc8 {[%emt 0:00:29]} 72. Rg6 {[%emt 0:00:25]} Kf7 {[%emt 0:00:23]} 73. g4 {[%emt 0:00:42]} Rh8+ {[%emt 0:00:46]} 74. Rh6 {[%emt 0:00:23]} Rg8 {[%emt 0:00:46]} 75. g5 {[%emt 0:00:13]} Bg7 {[%emt 0:00:46]} 76. Rb6 {[%emt 0:00:20]} Rh8+ {[%emt 0:00:30]} 77. Kg4 {[%emt 0:00:05]} Bd4 {[%emt 0:00:21]} 78. Rc6 {[%emt 0:00:50]} Ra8 {[%emt 0:00:52]} 79. Rc7+ {[%emt 0:00:12]} Kg8 {[%emt 0:00:17]} 80. g6 {[%emt 0:00:46]} Ra4 {[%emt 0:00:35]} 81. Kg5 {[%emt 0:00:43]} Ra5+ {[%emt 0:00:40]} 82. Kh6 {[%emt 0:00:29]} Ra8 {[%emt 0:00:20]} 83. Rb7 {[%emt 0:01:01]} Ba7 {[%emt 0:01:00]} 84. Rg7+ {[%emt 0:00:35]} Kf8 {[%emt 0:00:32]} 85. Bd6+ {[%emt 0:00:08]} 1-0

[Event "GER-ch Youth U16W 2020"]
[Site "Willingen"]
[Date "2020.10.23"]
[Round "6.8"]
[White "Cheredzhiyska, Iva"]
[Black "Schneider, Katharina"]
[Result "0-1"]
[ECO "C45"]
[WhiteElo "1674"]
[BlackElo "1779"]
[Annotator "NA"]
[PlyCount "78"]
[EventDate "2020.10.20"]
[EventType "swiss"]
[EventRounds "7"]
[EventCountry "GER"]
[SourceTitle "playchess.com"]
[Source "ChessBase"]
[SourceQuality "1"]
[TimeControl "40/5400+30:1800+30"]

1. e4 {[%emt 0:00:00]} e5 {[%emt 0:00:00]} 2. Nf3 {[%emt 0:00:00]} Nc6 {[%emt 0:00:00]} 3. d4 {[%emt 0:00:00]} exd4 {[%emt 0:00:00]} 4. Nxd4 {[%emt 0:00:13]} Bc5 {[%emt 0:00:00]} 5. Nb3 {[%emt 0:00:47]} Bb6 {[%emt 0:00:29]} 6. Nc3 {[%emt 0:00:35]} Qf6 {[%emt 0:04:03]} 7. Qe2 {[%emt 0:02:14]} Nge7 {[%emt 0:05:10]} 8. Be3 {[%emt 0:11:29]} d6 {[%emt 0:07:23]} 9. O-O-O {[%emt 0:02:42]} Be6 {[%emt 0:04:04]} 10. Kb1 {[%emt 0:06:06]} O-O-O {[%emt 0:22:34]} 11. Nd5 {[%emt 0:06:57]} Bxd5 {[%emt 0:02:16]} 12. exd5 {[%emt 0:00:53]} Ne5 {[%emt 0:01:09]} 13. g3 {[%emt 0:15:47]} Kb8 {[%emt 0:04:36]} 14. Bxb6 {[%emt 0:05:28]} axb6 {[%emt 0:00:12]} 15. f4 {[%emt 0:00:38]} Nd7 {[%emt 0:01:44]} 16. Bh3 {[%emt 0:06:27]} Nc5 {[%emt 0:02:29]} 17. Qb5 {[%emt 0:04:53]} Nf5 {[%emt 0:04:50]} 18. Rhe1 {[%emt 0:03:13]} Nxb3 {[%emt 0:08:24]} 19. cxb3 {[%emt 0:02:02]} g6 {[%emt 0:03:02]} 20. Rc1 {[%emt 0:02:48]} h5 {[%emt 0:01:56]} 21. Qc4 {[%emt 0:03:31]} Rc8 {[%emt 0:00:11]} 22. b4 {[%emt 0:02:17]} c5 {[%emt 0:05:41]} 23. Qb5 {[%emt 0:04:03]} Qd8 {[%emt 0:02:39]} 24. bxc5 {[%emt 0:02:09]} bxc5 {[%emt 0:00:40]} 25. Bxf5 {[%emt 0:01:13]} gxf5 {[%emt 0:00:08]} 26. Rc4 {[%emt 0:01:07]} Re8 {[%emt 0:02:17]} 27. Rec1 {[%emt 0:02:05]} Re4 {[%emt 0:00:52]} 28. Rxe4 {[%emt 0:05:13]} fxe4 {[%emt 0:00:05]} 29. Qe2 {[%emt 0:00:22]} Qh8 {[%emt 0:06:19]} 30. Qxe4 {[%emt 0:01:56]} Re8 {[%emt 0:00:07]} 31. Qf3 {[%emt 0:00:10]} Qh7+ {[%emt 0:00:59]} 32. Ka1 {[%emt 0:01:25]} Re4 {[%emt 0:02:08]} 33. Rd1 {[%emt 0:00:58]} f5 {[%emt 0:00:34]} 34. a3 {[%emt 0:01:01]} Qf7 {[%emt 0:00:19]} 35. Qf2 {[%emt 0:02:03]} Qe8 {[%emt 0:00:20]} 36. Rd2 {[%emt 0:00:38]} Re1+ {[%emt 0:00:56]} 37. Ka2 {[%emt 0:00:19]} Qe4 {[%emt 0:00:46]} 38. Qg2 {[%emt 0:02:27]} Qc4+ {[%emt 0:01:18]} 39. b3 {[%emt 0:00:33]} Qc1 {[%emt 0:00:13]} 0-1

[Event "GER-ch Youth U16W 2020"]
[Site "Willingen"]
[Date "2020.10.23"]
[Round "6.9"]
[White "Jacoby, Angelina"]
[Black "Dohon, Maria-Johanna"]
[Result "1/2-1/2"]
[ECO "A11"]
[WhiteElo "1630"]
[BlackElo "1536"]
[Annotator "NA"]
[PlyCount "82"]
[EventDate "2020.10.20"]
[EventType "swiss"]
[EventRounds "7"]
[EventCountry "GER"]
[SourceTitle "playchess.com"]
[Source "ChessBase"]
[SourceQuality "1"]
[TimeControl "40/5400+30:1800+30"]

1. c4 {[%emt 0:00:00]} c6 {[%emt 0:00:00]} 2. g3 {[%emt 0:01:58]} d5 {[%emt 0:00:00]} 3. Bg2 {[%emt 0:01:52]} e5 {[%emt 0:02:36]} 4. Qc2 {[%emt 0:06:01]} Nf6 {[%emt 0:02:31]} 5. b3 {[%emt 0:02:31]} Bd6 {[%emt 0:02:06]} 6. Nc3 {[%emt 0:01:27]} d4 {[%emt 0:03:56]} 7. Ne4 {[%emt 0:02:07]} Nxe4 {[%emt 0:03:16]} 8. Bxe4 {[%emt 0:01:39]} h6 {[%emt 0:01:29]} 9. Bg2 {[%emt 0:09:29]} O-O {[%emt 0:01:36]} 10. Nf3 {[%emt 0:01:46]} Be6 {[%emt 0:02:52]} 11. Bb2 {[%emt 0:00:49]} Nd7 {[%emt 0:01:24]} 12. O-O {[%emt 0:00:26]} Qe7 {[%emt 0:04:30]} 13. e3 {[%emt 0:00:56]} dxe3 {[%emt 0:02:16]} 14. dxe3 {[%emt 0:03:09]} Rad8 {[%emt 0:04:06]} 15. Rad1 {[%emt 0:02:43]} Bg4 {[%emt 0:03:42]} 16. Rd2 {[%emt 0:07:11]} Bc7 {[%emt 0:06:50]} 17. h3 {[%emt 0:07:09]} Bh5 {[%emt 0:02:28]} 18. Nh2 {[%emt 0:05:33]} Bg6 {[%emt 0:02:05]} 19. e4 {[%emt 0:10:10]} Nc5 {[%emt 0:03:56]} 20. Rfd1 {[%emt 0:00:55]} Rxd2 {[%emt 0:02:09]} 21. Rxd2 {[%emt 0:00:18]} Rd8 {[%emt 0:00:54]} 22. Rxd8+ {[%emt 0:09:09]} Qxd8 {[%emt 0:00:38]} 23. f3 {[%emt 0:05:10]} f6 {[%emt 0:02:22]} 24. Bf1 {[%emt 0:01:40]} Bb6 {[%emt 0:01:33]} 25. Kg2 {[%emt 0:02:29]} h5 {[%emt 0:06:04]} 26. Bc3 {[%emt 0:04:49]} Bh7 {[%emt 0:09:35]} 27. b4 {[%emt 0:01:43]} Ne6 {[%emt 0:02:19]} 28. c5 {[%emt 0:00:52]} Bc7 {[%emt 0:00:21]} 29. Bc4 {[%emt 0:01:07]} Qe7 {[%emt 0:00:55]} 30. Qb3 {[%emt 0:02:18]} Kf7 {[%emt 0:00:38]} 31. Nf1 {[%emt 0:03:10]} Bg8 {[%emt 0:00:51]} 32. Ne3 {[%emt 0:01:08]} g6 {[%emt 0:00:11]} 33. Nc2 {[%emt 0:01:24]} Kg7 {[%emt 0:00:41]} 34. Qb2 {[%emt 0:00:52]} Qd7 {[%emt 0:01:07]} 35. Be2 {[%emt 0:00:40]} Nd8 {[%emt 0:02:17]} 36. Ne3 {[%emt 0:00:40]} Be6 {[%emt 0:00:51]} 37. h4 {[%emt 0:00:23]} Nf7 {[%emt 0:00:54]} 38. a3 {[%emt 0:00:51]} b6 {[%emt 0:02:44]} 39. cxb6 {[%emt 0:00:35]} Bxb6 {[%emt 0:00:15]} 40. Qd2 {[%emt 0:01:33]} Qe7 {[%emt 0:03:19]} 41. Nc4 {[%emt 0:04:52]} Bxc4 {[%emt 0:06:01]} 1/2-1/2